[Event "Early-Titled-Tuesday-Blitz-March-05-2024"]
[Site "Chess.com"]
[Date "2024.03.05"]
[Round "10"]
[White "Roman_Ovetchkin"]
[Black "ChessQueen"]
[Result "0-1"]
[WhiteElo "2591"]
[BlackElo "2768"]
[TimeControl "180+1"]
[EndTime "9:58:04 PST"]
[Termination "ChessQueen won on time"]

1. d4 {[%clk 0:02:56.3]} 1... f5 {[%clk 0:02:59.6]} 2. c4 {[%clk 0:02:48.6]}
2... Nf6 {[%clk 0:02:59.7]} 3. Nc3 {[%clk 0:02:44]} 3... g6 {[%clk 0:02:59.8]}
4. h4 {[%clk 0:02:30.9]} 4... Bg7 {[%clk 0:02:53.5]} 5. h5 {[%clk 0:02:30.8]}
5... Nxh5 {[%clk 0:02:37.8]} 6. e4 {[%clk 0:02:30.2]} 6... Nf6 {[%clk
0:02:36.9]} 7. e5 {[%clk 0:02:29.9]} 7... Ng8 {[%clk 0:02:32.6]} 8. Nf3 {[%clk
0:02:16.7]} 8... d6 {[%clk 0:02:28.8]} 9. Bf4 {[%clk 0:02:16]} 9... c5 {[%clk
0:02:17.6]} 10. d5 {[%clk 0:02:12.6]} 10... dxe5 {[%clk 0:02:14]} 11. Bxe5
{[%clk 0:02:08.4]} 11... Nf6 {[%clk 0:02:13.9]} 12. Bd3 {[%clk 0:02:00]} 12...
Nbd7 {[%clk 0:02:10.2]} 13. Bf4 {[%clk 0:01:53.8]} 13... e5 {[%clk 0:01:19.4]}
14. dxe6 {[%clk 0:01:25.2]} 14... Nb6 {[%clk 0:01:19.5]} 15. Qe2 {[%clk
0:01:22.5]} 15... Qe7 {[%clk 0:01:18.2]} 16. Ng5 {[%clk 0:01:19]} 16... O-O
{[%clk 0:01:08.1]} 17. O-O-O {[%clk 0:01:10.8]} 17... h6 {[%clk 0:01:06.5]} 18.
Nf7 {[%clk 0:01:10.3]} 18... h5 {[%clk 0:00:58.6]} 19. Bd6 {[%clk 0:01:05.7]}
19... Qxe6 {[%clk 0:00:57.2]} 20. Bxf8 {[%clk 0:01:00.6]} 20... Bxf8 {[%clk
0:00:53.2]} 21. Qxe6 {[%clk 0:00:44.8]} 21... Bxe6 {[%clk 0:00:52.6]} 22. Ne5
{[%clk 0:00:45.4]} 22... Kh7 {[%clk 0:00:35.1]} 23. Rhe1 {[%clk 0:00:44.5]}
23... Bh6+ {[%clk 0:00:34.8]} 24. Kc2 {[%clk 0:00:44.3]} 24... Re8 {[%clk
0:00:34.9]} 25. g3 {[%clk 0:00:42.2]} 25... Bg7 {[%clk 0:00:34.2]} 26. Nb5
{[%clk 0:00:40.5]} 26... Bg8 {[%clk 0:00:24.7]} 27. Nf3 {[%clk 0:00:35.3]} 27...
Ne4 {[%clk 0:00:17.8]} 28. Bxe4 {[%clk 0:00:27]} 28... fxe4 {[%clk 0:00:18.7]}
29. Rxe4 {[%clk 0:00:26.7]} 29... Rxe4 {[%clk 0:00:18.2]} 30. Ng5+ {[%clk
0:00:27]} 30... Kh6 {[%clk 0:00:18.8]} 31. Nxe4 {[%clk 0:00:26.1]} 31... Bxc4
{[%clk 0:00:19.5]} 32. Nbd6 {[%clk 0:00:21.6]} 32... Bxa2 {[%clk 0:00:19.6]} 33.
b3 {[%clk 0:00:21.1]} 33... c4 {[%clk 0:00:18.3]} 34. bxc4 {[%clk 0:00:16.1]}
34... Bxc4 {[%clk 0:00:13.9]} 35. Nxb7 {[%clk 0:00:13.7]} 35... Bd5 {[%clk
0:00:12.4]} 36. Nbd6 {[%clk 0:00:13.2]} 36... a5 {[%clk 0:00:11.8]} 37. Kd3
{[%clk 0:00:10.7]} 37... a4 {[%clk 0:00:11.5]} 38. Nc3 {[%clk 0:00:05.4]} 38...
Bb3 {[%clk 0:00:11.6]} 39. Rb1 {[%clk 0:00:02.7]} 39... Nd7 {[%clk 0:00:11.8]}
40. Nde4 {[%clk 0:00:02.3]} 40... Ne5+ {[%clk 0:00:11.7]} 41. Ke2 {[%clk
0:00:01.1]} 41... Nc4 {[%clk 0:00:10.3]} 0-1

[Event "Early-Titled-Tuesday-Blitz-March-05-2024"]
[Site "Chess.com"]
[Date "2024.03.05"]
[Round "10"]
[White "GilbertoHernandezAmura"]
[Black "Kotlyar_K"]
[Result "0-1"]
[WhiteElo "2463"]
[BlackElo "2602"]
[TimeControl "180+1"]
[EndTime "9:58:04 PST"]
[Termination "Kotlyar_K won by resignation"]

1. c4 {[%clk 0:03:00.9]} 1... e5 {[%clk 0:02:57.4]} 2. g3 {[%clk 0:02:59.5]}
2... c6 {[%clk 0:02:57.4]} 3. Bg2 {[%clk 0:02:58.5]} 3... d5 {[%clk 0:02:28.5]}
4. b3 {[%clk 0:02:50.6]} 4... Nf6 {[%clk 0:02:06.7]} 5. Bb2 {[%clk 0:02:49.3]}
5... Bd6 {[%clk 0:02:03.2]} 6. e3 {[%clk 0:02:44.3]} 6... O-O {[%clk 0:01:49.2]}
7. Ne2 {[%clk 0:02:29.6]} 7... Bf5 {[%clk 0:01:47.2]} 8. d4 {[%clk 0:02:27.8]}
8... e4 {[%clk 0:01:46.6]} 9. h3 {[%clk 0:02:22.8]} 9... h5 {[%clk 0:01:42.1]}
10. Nbc3 {[%clk 0:02:22.3]} 10... Na6 {[%clk 0:01:40.2]} 11. a3 {[%clk
0:02:21.1]} 11... Re8 {[%clk 0:01:37.3]} 12. Nf4 {[%clk 0:02:18]} 12... Bxf4
{[%clk 0:01:12.9]} 13. gxf4 {[%clk 0:02:16.6]} 13... Qd7 {[%clk 0:01:13.5]} 14.
c5 {[%clk 0:02:10.4]} 14... Nc7 {[%clk 0:01:10.4]} 15. Bf1 {[%clk 0:02:06.5]}
15... b6 {[%clk 0:01:08.6]} 16. cxb6 {[%clk 0:01:52.5]} 16... axb6 {[%clk
0:01:07.1]} 17. Na4 {[%clk 0:01:53.2]} 17... Rab8 {[%clk 0:01:00.6]} 18. Rc1
{[%clk 0:01:52.5]} 18... b5 {[%clk 0:00:58.9]} 19. Nc5 {[%clk 0:01:52.6]} 19...
Qe7 {[%clk 0:00:59.6]} 20. b4 {[%clk 0:01:51.5]} 20... Nd7 {[%clk 0:00:53.7]}
21. Qxh5 {[%clk 0:01:48.3]} 21... g6 {[%clk 0:00:53.5]} 22. Qd1 {[%clk
0:01:44.5]} 22... Nb6 {[%clk 0:00:53.5]} 23. h4 {[%clk 0:01:42.5]} 23... Nc4
{[%clk 0:00:52.4]} 24. Bxc4 {[%clk 0:01:37.2]} 24... dxc4 {[%clk 0:00:53.3]} 25.
h5 {[%clk 0:01:15.9]} 25... Nd5 {[%clk 0:00:51.9]} 26. hxg6 {[%clk 0:01:11.6]}
26... fxg6 {[%clk 0:00:52.8]} 27. Kd2 {[%clk 0:00:50.5]} 27... Kg7 {[%clk
0:00:49.4]} 28. Qe2 {[%clk 0:00:41.8]} 28... Rh8 {[%clk 0:00:44.7]} 29. Rcg1
{[%clk 0:00:35.9]} 29... Qa7 {[%clk 0:00:35.4]} 30. f3 {[%clk 0:00:20.6]} 30...
c3+ {[%clk 0:00:29.9]} 31. Bxc3 {[%clk 0:00:19.6]} 31... Nxc3 {[%clk 0:00:30.8]}
32. Kxc3 {[%clk 0:00:18.3]} 32... Qxa3+ {[%clk 0:00:30.9]} 33. Kd2 {[%clk
0:00:12.8]} 33... Qxb4+ {[%clk 0:00:26.7]} 34. Kd1 {[%clk 0:00:13.4]} 34... Ra8
{[%clk 0:00:25.7]} 35. Qc2 {[%clk 0:00:11.4]} 35... Ra1+ {[%clk 0:00:23.9]} 36.
Ke2 {[%clk 0:00:11.7]} 36... exf3+ {[%clk 0:00:24.4]} 37. Kxf3 {[%clk
0:00:08.9]} 37... Bxc2 {[%clk 0:00:24.6]} 38. Rxa1 {[%clk 0:00:08.7]} 38... Rxh1
{[%clk 0:00:22.4]} 39. Rxh1 {[%clk 0:00:09.6]} 39... Qc4 {[%clk 0:00:20.4]} 40.
Rh4 {[%clk 0:00:08.3]} 40... b4 {[%clk 0:00:19.7]} 41. f5 {[%clk 0:00:06.1]}
41... Bxf5 {[%clk 0:00:19.4]} 42. e4 {[%clk 0:00:06.7]} 42... Qxd4 {[%clk
0:00:17]} 43. e5 {[%clk 0:00:05.6]} 43... Qxh4 {[%clk 0:00:16.5]} 0-1

[Event "Early-Titled-Tuesday-Blitz-March-05-2024"]
[Site "Chess.com"]
[Date "2024.03.05"]
[Round "10"]
[White "db-banana"]
[Black "Doublekk14"]
[Result "1/2-1/2"]
[WhiteElo "2462"]
[BlackElo "2362"]
[TimeControl "180+1"]
[EndTime "9:58:06 PST"]
[Termination "Game drawn by repetition"]

1. e4 {[%clk 0:03:00.9]} 1... c5 {[%clk 0:02:59.4]} 2. Nf3 {[%clk 0:02:59.7]}
2... e6 {[%clk 0:02:59.5]} 3. d3 {[%clk 0:02:59.7]} 3... d5 {[%clk 0:02:58.4]}
4. exd5 {[%clk 0:02:57.7]} 4... exd5 {[%clk 0:02:58.3]} 5. d4 {[%clk 0:02:57.3]}
5... Nf6 {[%clk 0:02:57.8]} 6. Bb5+ {[%clk 0:02:50.3]} 6... Nc6 {[%clk
0:02:57.4]} 7. O-O {[%clk 0:02:48.6]} 7... Be7 {[%clk 0:02:57.4]} 8. dxc5 {[%clk
0:02:48.2]} 8... O-O {[%clk 0:02:57.5]} 9. Bxc6 {[%clk 0:02:45.7]} 9... bxc6
{[%clk 0:02:57.2]} 10. Be3 {[%clk 0:02:44.7]} 10... Ne4 {[%clk 0:02:53.3]} 11.
Nbd2 {[%clk 0:02:37.4]} 11... Nxc5 {[%clk 0:02:46.8]} 12. Bxc5 {[%clk
0:02:35.8]} 12... Bxc5 {[%clk 0:02:46.2]} 13. Nb3 {[%clk 0:02:34.9]} 13... Bd6
{[%clk 0:02:46]} 14. Qd2 {[%clk 0:02:30.9]} 14... Qf6 {[%clk 0:02:41.6]} 15. c3
{[%clk 0:02:25.3]} 15... Bg4 {[%clk 0:02:40.6]} 16. Qg5 {[%clk 0:02:07.6]} 16...
Qxg5 {[%clk 0:02:36.1]} 17. Nxg5 {[%clk 0:02:08.5]} 17... h6 {[%clk 0:02:36.2]}
18. Nf3 {[%clk 0:02:07.1]} 18... Bxf3 {[%clk 0:02:36.2]} 19. gxf3 {[%clk
0:02:08]} 19... Rab8 {[%clk 0:02:10.8]} 20. Rfe1 {[%clk 0:02:01.7]} 20... Rfe8
{[%clk 0:02:05.4]} 21. Re3 {[%clk 0:01:45.5]} 21... Kf8 {[%clk 0:02:02.8]} 22.
Rd1 {[%clk 0:01:44]} 22... Bf4 {[%clk 0:01:52.5]} 23. Rxe8+ {[%clk 0:01:36.1]}
23... Kxe8 {[%clk 0:01:52.4]} 24. h3 {[%clk 0:01:34.1]} 24... Kd7 {[%clk
0:01:30.6]} 25. Rd4 {[%clk 0:01:30.7]} 25... Bd6 {[%clk 0:01:22.1]} 26. Ra4
{[%clk 0:01:20.2]} 26... Rb7 {[%clk 0:01:20.6]} 27. Rg4 {[%clk 0:01:16.8]} 27...
g6 {[%clk 0:01:20]} 28. Kf1 {[%clk 0:01:02]} 28... c5 {[%clk 0:01:19.8]} 29. c4
{[%clk 0:00:52]} 29... d4 {[%clk 0:00:59.6]} 30. Re4 {[%clk 0:00:42.5]} 30... a5
{[%clk 0:00:57.5]} 31. Re2 {[%clk 0:00:42.9]} 31... a4 {[%clk 0:00:51.6]} 32.
Nc1 {[%clk 0:00:43.4]} 32... Rb4 {[%clk 0:00:51.9]} 33. b3 {[%clk 0:00:42]}
33... axb3 {[%clk 0:00:51.1]} 34. axb3 {[%clk 0:00:42.9]} 34... Rb8 {[%clk
0:00:46]} 35. Rb2 {[%clk 0:00:41.6]} 35... Ra8 {[%clk 0:00:43.9]} 36. Nd3 {[%clk
0:00:41]} 36... Ra1+ {[%clk 0:00:42.3]} 37. Kg2 {[%clk 0:00:39.7]} 37... Rd1
{[%clk 0:00:41.5]} 38. Nxc5+ {[%clk 0:00:18.4]} 38... Bxc5 {[%clk 0:00:39.6]}
39. b4 {[%clk 0:00:19.3]} 39... Kc6 {[%clk 0:00:31.9]} 40. bxc5 {[%clk
0:00:15.9]} 40... Kxc5 {[%clk 0:00:32]} 41. Rb7 {[%clk 0:00:16.5]} 41... Kxc4
{[%clk 0:00:26.9]} 42. Rxf7 {[%clk 0:00:16.6]} 42... Re1 {[%clk 0:00:26.8]} 43.
Rf6 {[%clk 0:00:14.9]} 43... Re5 {[%clk 0:00:26.1]} 44. f4 {[%clk 0:00:14]}
44... Rd5 {[%clk 0:00:25.3]} 45. Rxg6 {[%clk 0:00:12.4]} 45... d3 {[%clk
0:00:25.3]} 46. Rc6+ {[%clk 0:00:13.1]} 46... Kb3 {[%clk 0:00:23.9]} 47. Rb6+
{[%clk 0:00:12.4]} 47... Kc2 {[%clk 0:00:23.9]} 48. Rc6+ {[%clk 0:00:12.7]}
48... Kb3 {[%clk 0:00:21.7]} 49. Rb6+ {[%clk 0:00:12.9]} 49... Kc4 {[%clk
0:00:21.9]} 50. Rc6+ {[%clk 0:00:13.2]} 50... Rc5 {[%clk 0:00:22]} 51. Rd6
{[%clk 0:00:13.8]} 51... Rd5 {[%clk 0:00:19.7]} 52. Rc6+ {[%clk 0:00:14]}
1/2-1/2

[Event "Early-Titled-Tuesday-Blitz-March-05-2024"]
[Site "Chess.com"]
[Date "2024.03.05"]
[Round "10"]
[White "ansko1999"]
[Black "Practical-Play"]
[Result "1-0"]
[WhiteElo "2711"]
[BlackElo "2529"]
[TimeControl "180+1"]
[EndTime "9:58:07 PST"]
[Termination "ansko1999 won on time"]

1. Nf3 {[%clk 0:03:00.9]} 1... Nf6 {[%clk 0:02:54.9]} 2. b3 {[%clk 0:02:58.3]}
2... b6 {[%clk 0:02:46.1]} 3. Bb2 {[%clk 0:02:58.1]} 3... Bb7 {[%clk 0:02:46.7]}
4. g3 {[%clk 0:02:57.3]} 4... g6 {[%clk 0:02:45.6]} 5. Bg2 {[%clk 0:02:57.5]}
5... Bg7 {[%clk 0:02:45.7]} 6. O-O {[%clk 0:02:58]} 6... O-O {[%clk 0:02:45.7]}
7. c4 {[%clk 0:02:58.3]} 7... c5 {[%clk 0:02:43.3]} 8. d4 {[%clk 0:02:55.5]}
8... cxd4 {[%clk 0:02:41.8]} 9. Qxd4 {[%clk 0:02:56.4]} 9... Nc6 {[%clk
0:02:37.4]} 10. Qh4 {[%clk 0:02:53.5]} 10... d6 {[%clk 0:02:28.3]} 11. Nbd2
{[%clk 0:02:42.6]} 11... Qc8 {[%clk 0:02:16.6]} 12. Bh3 {[%clk 0:02:17.6]} 12...
Qc7 {[%clk 0:02:09.5]} 13. Rad1 {[%clk 0:02:06.4]} 13... Rad8 {[%clk 0:01:59.6]}
14. Ba1 {[%clk 0:01:29.7]} 14... d5 {[%clk 0:01:57.1]} 15. cxd5 {[%clk
0:01:25.5]} 15... Rxd5 {[%clk 0:01:57.4]} 16. Qc4 {[%clk 0:01:12.8]} 16... Rfd8
{[%clk 0:01:35.2]} 17. Qc2 {[%clk 0:01:04.1]} 17... Bc8 {[%clk 0:01:07]} 18. Bg2
{[%clk 0:00:52.2]} 18... Rc5 {[%clk 0:01:00.8]} 19. Qb1 {[%clk 0:00:42.3]} 19...
Ba6 {[%clk 0:00:50.6]} 20. Rfe1 {[%clk 0:00:36.3]} 20... Nb4 {[%clk 0:00:42.4]}
21. Bd4 {[%clk 0:00:22.8]} 21... Rcd5 {[%clk 0:00:35.1]} 22. Rc1 {[%clk
0:00:19.2]} 22... Qd6 {[%clk 0:00:25.2]} 23. Bc3 {[%clk 0:00:18.2]} 23... e5
{[%clk 0:00:10.3]} 24. Nc4 {[%clk 0:00:14.6]} 24... Qe7 {[%clk 0:00:08.6]} 25.
Bxe5 {[%clk 0:00:13.1]} 25... Bxc4 {[%clk 0:00:07.4]} 26. bxc4 {[%clk
0:00:12.1]} 26... Ra5 {[%clk 0:00:05.8]} 27. Bc3 {[%clk 0:00:11.2]} 27... Ra4
{[%clk 0:00:03.8]} 28. Qb3 {[%clk 0:00:11.2]} 28... b5 {[%clk 0:00:03.4]} 29.
cxb5 {[%clk 0:00:10]} 29... Nxa2 {[%clk 0:00:01.6]} 30. Qxa4 {[%clk 0:00:09.1]}
30... Nxc1 {[%clk 0:00:02]} 31. Rxc1 {[%clk 0:00:09]} 31... Qxe2 {[%clk
0:00:02.8]} 32. Nd4 {[%clk 0:00:04.9]} 32... Qd3 {[%clk 0:00:01.9]} 33. Nc6
{[%clk 0:00:05]} 33... Re8 {[%clk 0:00:01.5]} 34. Bxf6 {[%clk 0:00:04.7]} 34...
Bxf6 {[%clk 0:00:01.3]} 35. Qd1 {[%clk 0:00:05.2]} 35... Qf5 {[%clk 0:00:01.7]}
36. Bf1 {[%clk 0:00:04.8]} 36... Bg5 {[%clk 0:00:01.7]} 37. Rb1 {[%clk
0:00:04.9]} 37... h5 {[%clk 0:00:01.5]} 38. Bd3 {[%clk 0:00:05]} 38... Qh3
{[%clk 0:00:01.2]} 39. Bf1 {[%clk 0:00:05.2]} 39... Qf5 {[%clk 0:00:01]} 40. Qd3
{[%clk 0:00:05.8]} 40... Qf6 {[%clk 0:00:01]} 41. Rd1 {[%clk 0:00:05.1]} 1-0

[Event "Early-Titled-Tuesday-Blitz-March-05-2024"]
[Site "Chess.com"]
[Date "2024.03.05"]
[Round "10"]
[White "Bkmzzzzz"]
[Black "Lady_Nika"]
[Result "1-0"]
[WhiteElo "2435"]
[BlackElo "2543"]
[TimeControl "180+1"]
[EndTime "9:58:07 PST"]
[Termination "Bkmzzzzz won on time"]

1. e4 {[%clk 0:03:00.9]} 1... b6 {[%clk 0:02:58.4]} 2. d3 {[%clk 0:02:55.2]}
2... Bb7 {[%clk 0:02:58.7]} 3. Nd2 {[%clk 0:02:54.8]} 3... e6 {[%clk 0:02:59]}
4. g3 {[%clk 0:02:55.1]} 4... Nf6 {[%clk 0:02:58.4]} 5. Bg2 {[%clk 0:02:55.6]}
5... d5 {[%clk 0:02:58.7]} 6. Qe2 {[%clk 0:02:52.7]} 6... Be7 {[%clk 0:02:58.6]}
7. Ngf3 {[%clk 0:02:52.8]} 7... O-O {[%clk 0:02:58.3]} 8. O-O {[%clk 0:02:53.3]}
8... c5 {[%clk 0:02:58.5]} 9. e5 {[%clk 0:02:51.1]} 9... Nfd7 {[%clk 0:02:58.5]}
10. Re1 {[%clk 0:02:51.6]} 10... b5 {[%clk 0:02:58.7]} 11. h4 {[%clk 0:02:51.5]}
11... Nc6 {[%clk 0:02:58.8]} 12. Nf1 {[%clk 0:02:47.4]} 12... a5 {[%clk
0:02:58.5]} 13. h5 {[%clk 0:02:47.3]} 13... Qc7 {[%clk 0:02:52.8]} 14. Bf4
{[%clk 0:02:45.9]} 14... Qb6 {[%clk 0:02:51.5]} 15. h6 {[%clk 0:02:45.6]} 15...
g6 {[%clk 0:02:51.5]} 16. N1h2 {[%clk 0:02:39.8]} 16... Rae8 {[%clk 0:02:51.5]}
17. Ng4 {[%clk 0:02:36.6]} 17... Nd8 {[%clk 0:02:51.5]} 18. Bg5 {[%clk
0:02:27.5]} 18... Bxg5 {[%clk 0:02:39.7]} 19. Nxg5 {[%clk 0:02:28.4]} 19... f6
{[%clk 0:02:39.8]} 20. exf6 {[%clk 0:01:56.5]} 20... Qd6 {[%clk 0:02:35.2]} 21.
f4 {[%clk 0:01:24.3]} 21... Nxf6 {[%clk 0:02:34.3]} 22. Ne5 {[%clk 0:01:21.5]}
22... Nd7 {[%clk 0:02:27.3]} 23. Bh3 {[%clk 0:01:17]} 23... Nxe5 {[%clk
0:02:25.2]} 24. Qxe5 {[%clk 0:01:17.9]} 24... Qxe5 {[%clk 0:02:24.7]} 25. Rxe5
{[%clk 0:01:18.8]} 25... Bc8 {[%clk 0:02:11.1]} 26. Rae1 {[%clk 0:01:19.2]}
26... Nc6 {[%clk 0:01:48.2]} 27. Bxe6+ {[%clk 0:01:07.1]} 27... Bxe6 {[%clk
0:01:14.9]} 28. Rxe6 {[%clk 0:01:06.9]} 28... Rxe6 {[%clk 0:01:13.8]} 29. Rxe6
{[%clk 0:01:06.8]} 29... Rc8 {[%clk 0:01:03.1]} 30. Rd6 {[%clk 0:01:01.3]} 30...
Nd4 {[%clk 0:00:59]} 31. Rd7 {[%clk 0:00:57]} 31... Nf5 {[%clk 0:00:59]} 32.
Rxh7 {[%clk 0:00:44.9]} 32... c4 {[%clk 0:00:43.7]} 33. dxc4 {[%clk 0:00:33]}
33... dxc4 {[%clk 0:00:29.9]} 34. g4 {[%clk 0:00:33.1]} 34... c3 {[%clk
0:00:10.1]} 35. bxc3 {[%clk 0:00:21.4]} 35... Nd6 {[%clk 0:00:09.3]} 36. Rg7+
{[%clk 0:00:21.1]} 36... Kh8 {[%clk 0:00:08.6]} 37. Rxg6 {[%clk 0:00:18.6]}
37... Ne8 {[%clk 0:00:02.7]} 38. Re6 {[%clk 0:00:14]} 38... Nc7 {[%clk
0:00:01.8]} 39. Re7 {[%clk 0:00:14.2]} 39... Nd5 {[%clk 0:00:01.9]} 40. Rh7+
{[%clk 0:00:14]} 40... Kg8 {[%clk 0:00:02.4]} 41. Rg7+ {[%clk 0:00:14.5]} 41...
Kf8 {[%clk 0:00:02.3]} 42. Ne6+ {[%clk 0:00:15]} 42... Ke8 {[%clk 0:00:02.7]}
43. h7 {[%clk 0:00:15.5]} 1-0

[Event "Early-Titled-Tuesday-Blitz-March-05-2024"]
[Site "Chess.com"]
[Date "2024.03.05"]
[Round "10"]
[White "Viacheslav92"]
[Black "Austen48"]
[Result "1-0"]
[WhiteElo "2532"]
[BlackElo "2311"]
[TimeControl "180+1"]
[EndTime "9:58:08 PST"]
[Termination "Viacheslav92 won on time"]

1. e4 {[%clk 0:02:52]} 1... c5 {[%clk 0:02:58.5]} 2. Nf3 {[%clk 0:02:50.4]} 2...
e6 {[%clk 0:02:58.2]} 3. g3 {[%clk 0:02:50]} 3... Nc6 {[%clk 0:02:51]} 4. Bg2
{[%clk 0:02:49.8]} 4... d5 {[%clk 0:02:49.2]} 5. e5 {[%clk 0:02:47.9]} 5... d4
{[%clk 0:02:42]} 6. O-O {[%clk 0:02:45]} 6... Nge7 {[%clk 0:02:41.7]} 7. Re1
{[%clk 0:02:45.9]} 7... Nf5 {[%clk 0:02:39.3]} 8. d3 {[%clk 0:02:46.8]} 8... Be7
{[%clk 0:02:34.9]} 9. h4 {[%clk 0:02:39.5]} 9... h6 {[%clk 0:02:28.8]} 10. h5
{[%clk 0:02:37.4]} 10... O-O {[%clk 0:02:25.9]} 11. a4 {[%clk 0:02:35.6]} 11...
Rb8 {[%clk 0:02:23.8]} 12. Bf4 {[%clk 0:02:34.1]} 12... b6 {[%clk 0:02:19.7]}
13. g4 {[%clk 0:02:32.1]} 13... g5 {[%clk 0:01:47]} 14. gxf5 {[%clk 0:02:07.9]}
14... gxf4 {[%clk 0:01:38.4]} 15. f6 {[%clk 0:02:08.8]} 15... Bxf6 {[%clk
0:01:38.4]} 16. exf6 {[%clk 0:02:09.2]} 16... Qxf6 {[%clk 0:01:38.5]} 17. Qe2
{[%clk 0:02:07.2]} 17... Kh8 {[%clk 0:01:36.3]} 18. Ne5 {[%clk 0:02:05.7]} 18...
Ne7 {[%clk 0:01:29]} 19. Ng4 {[%clk 0:01:50]} 19... Qg7 {[%clk 0:01:23.5]} 20.
Qe5 {[%clk 0:01:44]} 20... f6 {[%clk 0:01:22.9]} 21. Qxf4 {[%clk 0:01:41.1]}
21... Nf5 {[%clk 0:01:15.7]} 22. Qxb8 {[%clk 0:01:14.9]} 22... Qxg4 {[%clk
0:01:11.6]} 23. f3 {[%clk 0:01:11.6]} 23... Qg5 {[%clk 0:00:43.6]} 24. Qh2
{[%clk 0:01:04.8]} 24... Ne3 {[%clk 0:00:35.1]} 25. Nd2 {[%clk 0:00:52.8]} 25...
Nxc2 {[%clk 0:00:29.1]} 26. Ne4 {[%clk 0:00:49.8]} 26... Qg7 {[%clk 0:00:23.2]}
27. Kh1 {[%clk 0:00:41.1]} 27... f5 {[%clk 0:00:20.5]} 28. Nd6 {[%clk
0:00:38.3]} 28... Rg8 {[%clk 0:00:20]} 29. Nxc8 {[%clk 0:00:34.4]} 29... Rxc8
{[%clk 0:00:19.2]} 30. Rac1 {[%clk 0:00:27.1]} 30... Nxe1 {[%clk 0:00:17.8]} 31.
Rxe1 {[%clk 0:00:28]} 31... Kh7 {[%clk 0:00:14.7]} 32. Rg1 {[%clk 0:00:22.2]}
32... Qf6 {[%clk 0:00:12.1]} 33. f4 {[%clk 0:00:21.6]} 33... Rg8 {[%clk
0:00:11.6]} 34. Bf3 {[%clk 0:00:18.1]} 34... Qf7 {[%clk 0:00:06.1]} 35. Rxg8
{[%clk 0:00:16.1]} 35... Qxg8 {[%clk 0:00:05.9]} 36. Qg2 {[%clk 0:00:15.9]}
36... Qf8 {[%clk 0:00:05.1]} 37. Qg6+ {[%clk 0:00:14.8]} 37... Kh8 {[%clk
0:00:05.2]} 38. Qxe6 {[%clk 0:00:14.6]} 38... Kh7 {[%clk 0:00:03]} 39. Qg6+
{[%clk 0:00:13.3]} 39... Kh8 {[%clk 0:00:03.6]} 40. b3 {[%clk 0:00:13.7]} 40...
a6 {[%clk 0:00:02.5]} 41. Bd5 {[%clk 0:00:12.5]} 41... b5 {[%clk 0:00:01.9]} 42.
axb5 {[%clk 0:00:12.1]} 42... axb5 {[%clk 0:00:01.6]} 43. Kg2 {[%clk 0:00:12.5]}
1-0